[Event "Live Chess"]
[Site "Chess.com"]
[Date "2024.06.01"]
[Round "-"]
[White "agamilewska"]
[Black "Dhaydon19"]
[Result "0-1"]
[WhiteElo "1774"]
[BlackElo "2678"]
[TimeControl "300"]
[EndTime "15:13:52 PDT"]
[Termination "Dhaydon19 won by resignation"]

1. d4 {[%clk 0:04:56.7]} 1... c6 {[%clk 0:04:59]} 2. c4 {[%clk 0:04:53]} 2... d5
{[%clk 0:04:58.4]} 3. cxd5 {[%clk 0:04:51.9]} 3... cxd5 {[%clk 0:04:57.6]} 4.
Nc3 {[%clk 0:04:51.8]} 4... Nf6 {[%clk 0:04:57]} 5. Bg5 {[%clk 0:04:50.2]} 5...
a6 {[%clk 0:04:56.4]} 6. Bxf6 {[%clk 0:04:48.7]} 6... gxf6 {[%clk 0:04:54.5]} 7.
Nf3 {[%clk 0:04:48.6]} 7... e6 {[%clk 0:04:53.9]} 8. e3 {[%clk 0:04:47.6]} 8...
Nc6 {[%clk 0:04:53.5]} 9. Bd3 {[%clk 0:04:46.5]} 9... Bd6 {[%clk 0:04:52.4]} 10.
O-O {[%clk 0:04:45.5]} 10... f5 {[%clk 0:04:51.8]} 11. h3 {[%clk 0:04:41.3]}
11... Rg8 {[%clk 0:04:47.7]} 12. Kh1 {[%clk 0:04:38.5]} 12... Qf6 {[%clk
0:04:46.4]} 13. Nh2 {[%clk 0:04:35.5]} 13... Qh4 {[%clk 0:04:40.2]} 14. Qf3
{[%clk 0:04:32.2]} 14... Bd7 {[%clk 0:04:36.9]} 15. Ne2 {[%clk 0:04:12.8]} 15...
Ne7 {[%clk 0:04:33.3]} 16. Nf4 {[%clk 0:04:10.3]} 16... Ng6 {[%clk 0:04:32.3]}
17. g3 {[%clk 0:03:37.2]} 17... Qh6 {[%clk 0:04:29.3]} 18. Nh5 {[%clk
0:03:31.6]} 18... Ke7 {[%clk 0:04:28.1]} 19. g4 {[%clk 0:03:24.8]} 19... Nh4
{[%clk 0:04:26.2]} 20. Qe2 {[%clk 0:03:09.7]} 20... fxg4 {[%clk 0:04:24.3]} 21.
hxg4 {[%clk 0:03:04.9]} 21... Rg5 {[%clk 0:04:13.7]} 22. f4 {[%clk 0:02:54.9]}
22... Rgg8 {[%clk 0:04:01.7]} 23. g5 {[%clk 0:02:52.6]} 23... Qf8 {[%clk
0:04:00.5]} 24. Nf6 {[%clk 0:02:48.5]} 24... Rh8 {[%clk 0:03:57.5]} 25. Qh5
{[%clk 0:02:34.3]} 25... Ng6 {[%clk 0:03:55.2]} 26. Nxd7 {[%clk 0:02:30.8]}
26... Kxd7 {[%clk 0:03:53.4]} 27. Ng4 {[%clk 0:02:26.9]} 27... Qg7 {[%clk
0:03:50.6]} 28. Nf6+ {[%clk 0:02:25.7]} 28... Ke7 {[%clk 0:03:48.8]} 29. Rac1
{[%clk 0:02:21]} 29... h6 {[%clk 0:03:45.5]} 30. Kg2 {[%clk 0:02:12.9]} 30...
hxg5 {[%clk 0:03:35.5]} 31. Qxg5 {[%clk 0:02:12.2]} 31... Nh4+ {[%clk
0:03:29.6]} 32. Kf2 {[%clk 0:02:07.2]} 32... Qxf6 {[%clk 0:03:28.6]} 33. Qxf6+
{[%clk 0:01:53.3]} 33... Kxf6 {[%clk 0:03:27.4]} 34. Rh1 {[%clk 0:01:50.4]}
34... Ng6 {[%clk 0:03:24.7]} 35. Bxg6 {[%clk 0:01:44.4]} 35... fxg6 {[%clk
0:03:23]} 36. Kf3 {[%clk 0:01:39.7]} 36... Rxh1 {[%clk 0:03:20.2]} 37. Rxh1
{[%clk 0:01:38.9]} 37... Rc8 {[%clk 0:03:19.9]} 0-1

[Event "Live Chess"]
[Site "Chess.com"]
[Date "2024.06.01"]
[Round "-"]
[White "upoe610"]
[Black "ACM42"]
[Result "1-0"]
[WhiteElo "2203"]
[BlackElo "2155"]
[TimeControl "300"]
[EndTime "15:14:08 PDT"]
[Termination "upoe610 won on time"]

1. c4 {[%clk 0:04:57.4]} 1... Nf6 {[%clk 0:04:58.7]} 2. g3 {[%clk 0:04:55.8]}
2... g6 {[%clk 0:04:58.1]} 3. Bg2 {[%clk 0:04:54.3]} 3... Bg7 {[%clk 0:04:57.5]}
4. Nc3 {[%clk 0:04:52.2]} 4... O-O {[%clk 0:04:56.8]} 5. d4 {[%clk 0:04:49.7]}
5... d6 {[%clk 0:04:56.1]} 6. h3 {[%clk 0:04:45.3]} 6... c5 {[%clk 0:04:54.6]}
7. e3 {[%clk 0:04:43.6]} 7... Nc6 {[%clk 0:04:50.6]} 8. Nge2 {[%clk 0:04:42.2]}
8... a6 {[%clk 0:04:46.4]} 9. O-O {[%clk 0:04:39.2]} 9... Rb8 {[%clk 0:04:41.5]}
10. b3 {[%clk 0:04:37.2]} 10... Qc7 {[%clk 0:04:26.6]} 11. Bb2 {[%clk
0:04:34.4]} 11... b5 {[%clk 0:04:25.1]} 12. dxc5 {[%clk 0:04:31.8]} 12... dxc5
{[%clk 0:04:23.9]} 13. cxb5 {[%clk 0:04:30.8]} 13... axb5 {[%clk 0:04:22.6]} 14.
Nd5 {[%clk 0:04:30]} 14... Nxd5 {[%clk 0:04:20.2]} 15. Bxg7 {[%clk 0:04:28.6]}
15... Kxg7 {[%clk 0:04:18.1]} 16. Qxd5 {[%clk 0:04:27.1]} 16... Nb4 {[%clk
0:04:10.2]} 17. Qe4 {[%clk 0:04:21.4]} 17... Bf5 {[%clk 0:04:06.3]} 18. Qf4
{[%clk 0:04:17]} 18... e5 {[%clk 0:03:51.6]} 19. Qf3 {[%clk 0:04:09.7]} 19... h5
{[%clk 0:03:26.3]} 20. e4 {[%clk 0:04:07.2]} 20... Be6 {[%clk 0:03:22.2]} 21.
Rfc1 {[%clk 0:04:04.2]} 21... Ra8 {[%clk 0:03:11.5]} 22. Qc3 {[%clk 0:04:01]}
22... Rfc8 {[%clk 0:03:06.2]} 23. a3 {[%clk 0:03:57.5]} 23... Na6 {[%clk
0:03:01.9]} 24. Nf4 {[%clk 0:03:55.3]} 24... Bd7 {[%clk 0:02:49.2]} 25. Nd5
{[%clk 0:03:53.1]} 25... Qd6 {[%clk 0:02:47.9]} 26. f4 {[%clk 0:03:52]} 26...
Re8 {[%clk 0:02:22.6]} 27. Rf1 {[%clk 0:03:42.1]} 27... f6 {[%clk 0:02:05.9]}
28. Rad1 {[%clk 0:03:37.7]} 28... Qe6 {[%clk 0:01:57.3]} 29. fxe5 {[%clk
0:03:26.8]} 29... fxe5 {[%clk 0:01:54.5]} 30. Rf6 {[%clk 0:03:21.2]} 30... Qg8
{[%clk 0:01:47.4]} 31. Rdf1 {[%clk 0:03:17.3]} 31... Re6 {[%clk 0:01:22.8]} 32.
Rf7+ {[%clk 0:03:13.7]} 32... Qxf7 {[%clk 0:01:20.4]} 33. Rxf7+ {[%clk
0:03:13.6]} 33... Kxf7 {[%clk 0:01:19.4]} 34. Qf3+ {[%clk 0:03:12.4]} 34... Kg7
{[%clk 0:01:17]} 35. h4 {[%clk 0:03:09.6]} 35... Rf8 {[%clk 0:01:15.6]} 36. Qe2
{[%clk 0:03:07.2]} 36... Bc6 {[%clk 0:01:08.3]} 37. Bh3 {[%clk 0:03:03]} 37...
Ree8 {[%clk 0:01:05.2]} 38. Kg2 {[%clk 0:02:54.6]} 38... Rd8 {[%clk 0:00:58.5]}
39. Be6 {[%clk 0:02:46.3]} 39... Rd6 {[%clk 0:00:51.7]} 40. Bh3 {[%clk 0:02:42]}
40... Nb8 {[%clk 0:00:45.5]} 41. Ne3 {[%clk 0:02:33.3]} 41... Nd7 {[%clk
0:00:42.9]} 42. Bxd7 {[%clk 0:02:30.9]} 42... Bxe4+ {[%clk 0:00:38.8]} 43. Kg1
{[%clk 0:02:24.5]} 43... Rxd7 {[%clk 0:00:38]} 44. Qxb5 {[%clk 0:02:17]} 44...
Rd3 {[%clk 0:00:33.5]} 45. Qxc5 {[%clk 0:02:15.2]} 45... Rf6 {[%clk 0:00:25.1]}
46. Qe7+ {[%clk 0:02:13.1]} 46... Rf7 {[%clk 0:00:16.9]} 47. Qxe5+ {[%clk
0:02:11.4]} 47... Kf8 {[%clk 0:00:15.5]} 48. Qxe4 {[%clk 0:02:08.7]} 48... Rxb3
{[%clk 0:00:14.4]} 49. Qa8+ {[%clk 0:02:02.1]} 49... Kg7 {[%clk 0:00:13]} 50.
Qe4 {[%clk 0:01:56.8]} 50... Rxa3 {[%clk 0:00:10.6]} 51. Qd4+ {[%clk 0:01:55.7]}
51... Kh7 {[%clk 0:00:09.7]} 52. Nd5 {[%clk 0:01:54.5]} 52... Ra2 {[%clk
0:00:06.4]} 53. Nf6+ {[%clk 0:01:53.1]} 53... Kh6 {[%clk 0:00:05.3]} 54. Ng8+
{[%clk 0:01:46.4]} 54... Kh7 {[%clk 0:00:04.1]} 55. Nf6+ {[%clk 0:01:42]} 55...
Kh6 {[%clk 0:00:03.6]} 56. g4 {[%clk 0:01:41.4]} 56... hxg4 {[%clk 0:00:02.5]}
57. Nxg4+ {[%clk 0:01:40.2]} 57... Kh7 {[%clk 0:00:02.4]} 58. Qd5 {[%clk
0:01:37.4]} 58... Ra1+ {[%clk 0:00:01]} 59. Kg2 {[%clk 0:01:36.5]} 59... Rfa7
{[%clk 0:00:00.6]} 60. h5 {[%clk 0:01:31.6]} 60... Kg7 {[%clk 0:00:00.5]} 61.
h6+ {[%clk 0:01:30.4]} 1-0

[Event "Live Chess"]
[Site "Chess.com"]
[Date "2024.06.01"]
[Round "-"]
[White "Silverback7829"]
[Black "DJ_Lambton"]
[Result "0-1"]
[WhiteElo "902"]
[BlackElo "1729"]
[TimeControl "300"]
[EndTime "15:14:33 PDT"]
[Termination "DJ_Lambton won by checkmate"]

1. d4 {[%clk 0:04:57.6]} 1... d5 {[%clk 0:04:58.3]} 2. Nf3 {[%clk 0:04:55.4]}
2... Nf6 {[%clk 0:04:57.4]} 3. Nc3 {[%clk 0:04:53.6]} 3... Bf5 {[%clk
0:04:56.6]} 4. Bf4 {[%clk 0:04:49.6]} 4... e6 {[%clk 0:04:55.7]} 5. e3 {[%clk
0:04:48.2]} 5... Nbd7 {[%clk 0:04:54.2]} 6. Bb5 {[%clk 0:04:44.8]} 6... c6
{[%clk 0:04:53.4]} 7. Bd3 {[%clk 0:04:41.1]} 7... Bb4 {[%clk 0:04:52.3]} 8. Bxf5
{[%clk 0:04:37.5]} 8... exf5 {[%clk 0:04:52.2]} 9. a3 {[%clk 0:04:33.8]} 9...
Bxc3+ {[%clk 0:04:50.5]} 10. bxc3 {[%clk 0:04:30.6]} 10... O-O {[%clk 0:04:50]}
11. O-O {[%clk 0:04:27.4]} 11... Ne4 {[%clk 0:04:46.3]} 12. Ne5 {[%clk
0:04:19.9]} 12... Nxe5 {[%clk 0:04:42.3]} 13. dxe5 {[%clk 0:04:16.8]} 13... Nxc3
{[%clk 0:04:41]} 14. Qd2 {[%clk 0:04:08.2]} 14... Ne4 {[%clk 0:04:40]} 15. Qb4
{[%clk 0:04:02.8]} 15... a5 {[%clk 0:04:33]} 16. Qxb7 {[%clk 0:03:56.6]} 16...
Rc8 {[%clk 0:04:30.8]} 17. Qb3 {[%clk 0:03:44.6]} 17... Nc5 {[%clk 0:04:29.7]}
18. Qa2 {[%clk 0:03:32.7]} 18... Ne6 {[%clk 0:04:28.7]} 19. Rab1 {[%clk
0:03:29.2]} 19... Qh4 {[%clk 0:04:26.5]} 20. Qb2 {[%clk 0:03:15.9]} 20... f6
{[%clk 0:04:20.5]} 21. Qc1 {[%clk 0:03:10.7]} 21... fxe5 {[%clk 0:04:19]} 22.
Bxe5 {[%clk 0:03:06.4]} 22... Ng5 {[%clk 0:04:12.5]} 23. Qb2 {[%clk 0:03:00.6]}
23... Rf7 {[%clk 0:04:07.7]} 24. Bf4 {[%clk 0:02:49.4]} 24... Rf6 {[%clk
0:04:04.8]} 25. Bxg5 {[%clk 0:02:46.5]} 25... Qxg5 {[%clk 0:04:04.2]} 26. Qb7
{[%clk 0:02:40.1]} 26... Rcf8 {[%clk 0:04:02.3]} 27. Rb6 {[%clk 0:02:28.6]}
27... Rg6 {[%clk 0:04:00.7]} 28. Qa7 {[%clk 0:02:14.3]} 28... Qxg2# {[%clk
0:03:58.3]} 0-1

[Event "Live Chess"]
[Site "Chess.com"]
[Date "2024.06.01"]
[Round "-"]
[White "Tushinskiy"]
[Black "bonantagulo"]
[Result "0-1"]
[WhiteElo "2242"]
[BlackElo "2222"]
[TimeControl "300"]
[EndTime "15:14:38 PDT"]
[Termination "bonantagulo won by resignation"]

1. d4 {[%clk 0:04:50.2]} 1... Nf6 {[%clk 0:04:58.8]} 2. c3 {[%clk 0:04:50.1]}
2... d5 {[%clk 0:04:57.6]} 3. Nf3 {[%clk 0:04:50]} 3... c5 {[%clk 0:04:56.9]} 4.
Bf4 {[%clk 0:04:49.7]} 4... e6 {[%clk 0:04:54.4]} 5. e3 {[%clk 0:04:47.9]} 5...
Bd6 {[%clk 0:04:52.9]} 6. Bg3 {[%clk 0:04:47.1]} 6... Nc6 {[%clk 0:04:52.1]} 7.
Bd3 {[%clk 0:04:45.5]} 7... O-O {[%clk 0:04:50.2]} 8. Nbd2 {[%clk 0:04:39]} 8...
Qe7 {[%clk 0:04:49.3]} 9. Ne5 {[%clk 0:04:37.6]} 9... Nd7 {[%clk 0:04:45.7]} 10.
f4 {[%clk 0:04:33.7]} 10... f6 {[%clk 0:04:42.8]} 11. Bxh7+ {[%clk 0:04:31.9]}
11... Kxh7 {[%clk 0:04:42]} 12. Qh5+ {[%clk 0:04:30.3]} 12... Kg8 {[%clk
0:04:41.5]} 13. Ng6 {[%clk 0:04:28.8]} 13... Qe8 {[%clk 0:04:41]} 14. Nf3 {[%clk
0:04:18.3]} 14... Ne7 {[%clk 0:04:38.5]} 15. Qh8+ {[%clk 0:04:11.1]} 15... Kf7
{[%clk 0:04:35.6]} 16. Nxf8 {[%clk 0:04:11]} 16... Nxf8 {[%clk 0:04:23.3]} 17.
O-O {[%clk 0:04:08.5]} 17... Nfg6 {[%clk 0:03:44.6]} 18. Qh5 {[%clk 0:04:01.1]}
18... Nf5 {[%clk 0:03:14.3]} 19. Rae1 {[%clk 0:03:51.7]} 19... Bd7 {[%clk
0:03:05.2]} 20. Qg4 {[%clk 0:03:48.3]} 20... Nh6 {[%clk 0:02:19.4]} 21. Qh5
{[%clk 0:03:43.4]} 21... Nf5 {[%clk 0:02:18]} 22. Qg4 {[%clk 0:03:40.7]} 22...
Nh6 {[%clk 0:02:11.7]} 23. Qh3 {[%clk 0:03:38.9]} 23... e5 {[%clk 0:02:08.5]}
24. f5 {[%clk 0:03:37.7]} 24... Bxf5 {[%clk 0:02:06.8]} 25. Ng5+ {[%clk
0:03:36.2]} 25... fxg5 {[%clk 0:01:57.1]} 26. Rxf5+ {[%clk 0:03:36.1]} 26...
Nxf5 {[%clk 0:01:53.4]} 27. Qxf5+ {[%clk 0:03:36]} 27... Kg8 {[%clk 0:01:51.2]}
28. Qxg5 {[%clk 0:03:32.8]} 28... Qe6 {[%clk 0:01:30.5]} 29. h4 {[%clk
0:03:28.6]} 29... cxd4 {[%clk 0:01:18.2]} 30. exd4 {[%clk 0:03:27]} 30... e4
{[%clk 0:01:17.6]} 31. h5 {[%clk 0:03:22.8]} 31... Bxg3 {[%clk 0:01:09.6]} 32.
Qxg3 {[%clk 0:03:22.7]} 32... Ne7 {[%clk 0:01:05.1]} 33. Qc7 {[%clk 0:03:20.5]}
33... Rf8 {[%clk 0:00:57.5]} 34. Qxb7 {[%clk 0:03:18.1]} 34... Qf7 {[%clk
0:00:52.7]} 35. Ra1 {[%clk 0:03:13.4]} 35... Qf2+ {[%clk 0:00:39.3]} 36. Kh2
{[%clk 0:03:11.7]} 36... Rf5 {[%clk 0:00:34.6]} 0-1

[Event "Live Chess"]
[Site "Chess.com"]
[Date "2024.06.01"]
[Round "-"]
[White "WelshTiger"]
[Black "TedUdale"]
[Result "1-0"]
[WhiteElo "2507"]
[BlackElo "2124"]
[TimeControl "300"]
[EndTime "15:14:43 PDT"]
[Termination "WelshTiger won by resignation"]

1. e4 {[%clk 0:04:56.7]} 1... e5 {[%clk 0:04:59.2]} 2. Nf3 {[%clk 0:04:55.5]}
2... Nc6 {[%clk 0:04:57.7]} 3. Bb5 {[%clk 0:04:54.1]} 3... d6 {[%clk 0:04:56.8]}
4. O-O {[%clk 0:04:51]} 4... Bg4 {[%clk 0:04:56]} 5. Bxc6+ {[%clk 0:04:45.4]}
5... bxc6 {[%clk 0:04:47.4]} 6. d3 {[%clk 0:04:41.5]} 6... Nf6 {[%clk 0:04:46]}
7. h3 {[%clk 0:04:35.9]} 7... Bh5 {[%clk 0:04:44.6]} 8. Nbd2 {[%clk 0:04:26.1]}
8... Be7 {[%clk 0:04:43.4]} 9. b3 {[%clk 0:04:24.6]} 9... O-O {[%clk 0:04:41.9]}
10. Bb2 {[%clk 0:04:22.3]} 10... c5 {[%clk 0:04:34.5]} 11. Qe1 {[%clk
0:04:21.4]} 11... a5 {[%clk 0:04:31.8]} 12. a4 {[%clk 0:04:19.8]} 12... Nd7
{[%clk 0:04:27.7]} 13. Nh2 {[%clk 0:04:07]} 13... Bg6 {[%clk 0:04:25]} 14. f4
{[%clk 0:04:00.4]} 14... f5 {[%clk 0:04:23.6]} 15. fxe5 {[%clk 0:03:56.5]} 15...
dxe5 {[%clk 0:04:14.7]} 16. exf5 {[%clk 0:03:52.7]} 16... Rxf5 {[%clk
0:04:11.7]} 17. Rxf5 {[%clk 0:03:51]} 17... Bxf5 {[%clk 0:04:11]} 18. Ne4 {[%clk
0:03:50.8]} 18... Bd6 {[%clk 0:04:07.7]} 19. Qe2 {[%clk 0:03:39.2]} 19... Qe7
{[%clk 0:04:05.9]} 20. Rf1 {[%clk 0:03:37]} 20... Rf8 {[%clk 0:04:04.5]} 21. Bc3
{[%clk 0:03:35.3]} 21... Nb6 {[%clk 0:03:49.7]} 22. Bxa5 {[%clk 0:03:30.2]}
22... Nd5 {[%clk 0:03:49]} 23. Bd2 {[%clk 0:03:16.8]} 23... Qe8 {[%clk
0:03:40.3]} 24. Be3 {[%clk 0:02:58.5]} 24... Qg6 {[%clk 0:03:38.3]} 25. Nxc5
{[%clk 0:02:47.9]} 25... Nxe3 {[%clk 0:03:34.4]} 26. Qxe3 {[%clk 0:02:43.6]}
26... Bxh3 {[%clk 0:03:30.3]} 27. Rxf8+ {[%clk 0:02:42.3]} 27... Kxf8 {[%clk
0:03:28]} 28. Qxh3 {[%clk 0:02:30.9]} 28... Bxc5+ {[%clk 0:03:26.8]} 29. Kh1
{[%clk 0:02:30.3]} 29... Qf6 {[%clk 0:03:06]} 30. Qf3 {[%clk 0:02:29]} 30... Ke7
{[%clk 0:03:02.9]} 31. Qxf6+ {[%clk 0:02:27.2]} 31... gxf6 {[%clk 0:03:01.8]}
32. g4 {[%clk 0:02:22.7]} 32... Be3 {[%clk 0:02:57.5]} 33. Kg2 {[%clk
0:02:21.4]} 33... Kd6 {[%clk 0:02:56]} 34. Kf3 {[%clk 0:02:20.7]} 34... Bg5
{[%clk 0:02:53.4]} 35. Nf1 {[%clk 0:02:18.5]} 35... Kd5 {[%clk 0:02:52.5]} 36.
c3 {[%clk 0:02:07.3]} 36... c5 {[%clk 0:02:51.4]} 37. a5 {[%clk 0:02:04.9]}
37... Kc6 {[%clk 0:02:50.3]} 38. Ne3 {[%clk 0:01:57.4]} 38... Kb5 {[%clk
0:02:49.1]} 39. Nc4 {[%clk 0:01:55.8]} 39... h6 {[%clk 0:02:37.4]} 40. Ke4
{[%clk 0:01:54.8]} 40... Kc6 {[%clk 0:02:31.8]} 41. b4 {[%clk 0:01:49]} 41...
cxb4 {[%clk 0:02:30.5]} 42. cxb4 {[%clk 0:01:48.9]} 42... Kb5 {[%clk 0:02:30]}
43. Nd6+ {[%clk 0:01:47.6]} 43... Kxb4 {[%clk 0:02:28.9]} 44. a6 {[%clk
0:01:46.9]} 44... f5+ {[%clk 0:02:27.1]} 45. gxf5 {[%clk 0:01:43]} 45... h5
{[%clk 0:02:25.7]} 46. a7 {[%clk 0:01:41.3]} 1-0

[Event "Live Chess"]
[Site "Chess.com"]
[Date "2024.06.01"]
[Round "-"]
[White "KeithArkell"]
[Black "ShanthamGrarks"]
[Result "1-0"]
[WhiteElo "2402"]
[BlackElo "1780"]
[TimeControl "300"]
[EndTime "15:15:08 PDT"]
[Termination "KeithArkell won by resignation"]

1. d4 {[%clk 0:04:57.7]} 1... e6 {[%clk 0:04:52.4]} 2. Nf3 {[%clk 0:04:56.7]}
2... Nf6 {[%clk 0:04:40.8]} 3. c4 {[%clk 0:04:54.3]} 3... d5 {[%clk 0:04:39.5]}
4. cxd5 {[%clk 0:04:53.2]} 4... exd5 {[%clk 0:04:37.3]} 5. Nc3 {[%clk
0:04:52.8]} 5... c6 {[%clk 0:04:36.4]} 6. Bg5 {[%clk 0:04:51.8]} 6... Bd6 {[%clk
0:04:33]} 7. e3 {[%clk 0:04:51.2]} 7... Bg4 {[%clk 0:04:31.8]} 8. Be2 {[%clk
0:04:50.3]} 8... Nbd7 {[%clk 0:04:31.3]} 9. O-O {[%clk 0:04:48]} 9... Qc7 {[%clk
0:04:28.9]} 10. g3 {[%clk 0:04:43.3]} 10... h6 {[%clk 0:04:10.7]} 11. Bf4 {[%clk
0:04:39.9]} 11... Bh3 {[%clk 0:04:09.8]} 12. Re1 {[%clk 0:04:38.5]} 12... Bxf4
{[%clk 0:04:05.7]} 13. exf4 {[%clk 0:04:36]} 13... O-O {[%clk 0:04:04.2]} 14.
Ne5 {[%clk 0:04:33.6]} 14... Rae8 {[%clk 0:03:56.9]} 15. b4 {[%clk 0:04:32]}
15... a6 {[%clk 0:03:54]} 16. Rc1 {[%clk 0:04:30.8]} 16... Qd6 {[%clk 0:03:50]}
17. a3 {[%clk 0:04:29.2]} 17... Re7 {[%clk 0:03:43]} 18. Na4 {[%clk 0:04:28]}
18... Rfe8 {[%clk 0:03:38.3]} 19. Nc5 {[%clk 0:04:27]} 19... Nxc5 {[%clk
0:03:34.2]} 20. bxc5 {[%clk 0:04:26.3]} 20... Qc7 {[%clk 0:03:31.9]} 21. Rb1
{[%clk 0:04:24.2]} 21... Ne4 {[%clk 0:03:30.5]} 22. Qc2 {[%clk 0:04:18.8]} 22...
Bf5 {[%clk 0:03:23.5]} 23. Bd3 {[%clk 0:04:16.2]} 23... f6 {[%clk 0:03:22.6]}
24. Nf3 {[%clk 0:04:15.2]} 24... Bg4 {[%clk 0:03:12.6]} 25. Nh4 {[%clk
0:04:12.7]} 25... Bh5 {[%clk 0:02:41.4]} 26. f5 {[%clk 0:04:09.2]} 26... Ng5
{[%clk 0:02:28.9]} 27. Qd2 {[%clk 0:04:02.8]} 27... Bf3 {[%clk 0:02:23.2]} 28.
Re3 {[%clk 0:03:57.3]} 28... Nh3+ {[%clk 0:02:14.3]} 29. Kf1 {[%clk 0:03:55.3]}
29... Rxe3 {[%clk 0:02:12.1]} 30. fxe3 {[%clk 0:03:54.4]} 30... Be4 {[%clk
0:02:08.7]} 31. Bxe4 {[%clk 0:03:41.3]} 31... Rxe4 {[%clk 0:02:06.3]} 32. Kg2
{[%clk 0:03:40]} 32... Ng5 {[%clk 0:02:03.2]} 33. Rb3 {[%clk 0:03:32.3]} 33...
Qe7 {[%clk 0:02:01.4]} 34. Kf2 {[%clk 0:03:28.7]} 34... Qc7 {[%clk 0:01:55.2]}
35. Qb2 {[%clk 0:03:24.1]} 35... Rxh4 {[%clk 0:01:49.1]} 36. gxh4 {[%clk
0:03:22.3]} 36... Qxh2+ {[%clk 0:01:47.4]} 37. Ke1 {[%clk 0:03:21.4]} 37... Nf3+
{[%clk 0:01:41.4]} 38. Kd1 {[%clk 0:03:20.6]} 38... Qh1+ {[%clk 0:01:28]} 39.
Kc2 {[%clk 0:03:19.9]} 39... Qe1 {[%clk 0:01:19.8]} 40. Qc3 {[%clk 0:03:16.1]}
40... Qe2+ {[%clk 0:01:17.4]} 41. Kc1 {[%clk 0:03:14.9]} 41... Ne1 {[%clk
0:01:02.1]} 42. Qd2 {[%clk 0:03:01.8]} 42... Qf1 {[%clk 0:00:50.7]} 43. Kb2
{[%clk 0:02:57.7]} 43... Nf3 {[%clk 0:00:48.6]} 44. Qc1 {[%clk 0:02:41.5]} 44...
Qe2+ {[%clk 0:00:45.5]} 45. Ka1 {[%clk 0:02:36.6]} 45... Nxh4 {[%clk 0:00:41]}
46. Rxb7 {[%clk 0:02:30.7]} 46... Nxf5 {[%clk 0:00:36.2]} 47. Qg1 {[%clk
0:02:17.9]} 47... g5 {[%clk 0:00:27.7]} 48. Qb1 {[%clk 0:02:14.2]} 48... Qf3
{[%clk 0:00:22.6]} 49. Rd7 {[%clk 0:02:11.8]} 49... Qe4 {[%clk 0:00:19.2]} 50.
Qb8+ {[%clk 0:02:09.3]} 1-0

[Event "Live Chess"]
[Site "Chess.com"]
[Date "2024.06.01"]
[Round "-"]
[White "NAZRIZ1977"]
[Black "vincents82"]
[Result "1-0"]
[WhiteElo "2167"]
[BlackElo "2068"]
[TimeControl "300"]
[EndTime "15:15:19 PDT"]
[Termination "NAZRIZ1977 won by resignation"]

1. c4 {[%clk 0:04:52.9]} 1... c6 {[%clk 0:04:57.2]} 2. g3 {[%clk 0:04:51.8]}
2... d5 {[%clk 0:04:56.3]} 3. Bg2 {[%clk 0:04:51.4]} 3... Nf6 {[%clk 0:04:55.3]}
4. Nf3 {[%clk 0:04:50.7]} 4... Bf5 {[%clk 0:04:54.4]} 5. cxd5 {[%clk 0:04:49.9]}
5... cxd5 {[%clk 0:04:53.4]} 6. Qb3 {[%clk 0:04:49.2]} 6... Qc8 {[%clk
0:04:49.4]} 7. O-O {[%clk 0:04:46.5]} 7... Nc6 {[%clk 0:04:46.8]} 8. Nc3 {[%clk
0:04:45.3]} 8... e6 {[%clk 0:04:46.2]} 9. d3 {[%clk 0:04:44.6]} 9... h6 {[%clk
0:04:44.9]} 10. Re1 {[%clk 0:04:41.7]} 10... Be7 {[%clk 0:04:43.5]} 11. e4
{[%clk 0:04:40.7]} 11... dxe4 {[%clk 0:04:37.9]} 12. dxe4 {[%clk 0:04:39.8]}
12... Bh7 {[%clk 0:04:36.7]} 13. h3 {[%clk 0:04:38.5]} 13... O-O {[%clk
0:04:35.2]} 14. Bf4 {[%clk 0:04:35.3]} 14... Na5 {[%clk 0:04:26.8]} 15. Qa4
{[%clk 0:04:26.5]} 15... Nc4 {[%clk 0:04:17.2]} 16. Qb3 {[%clk 0:04:17.3]} 16...
g5 {[%clk 0:03:52.2]} 17. Bc1 {[%clk 0:04:11.1]} 17... Na5 {[%clk 0:03:41.2]}
18. Qa4 {[%clk 0:04:05.1]} 18... b6 {[%clk 0:03:38.1]} 19. h4 {[%clk 0:03:55.6]}
19... g4 {[%clk 0:03:36]} 20. Ne5 {[%clk 0:03:53.8]} 20... Bd6 {[%clk 0:03:26]}
21. Nd3 {[%clk 0:03:49.2]} 21... Qc4 {[%clk 0:03:23.8]} 22. Qxc4 {[%clk
0:03:46.6]} 22... Nxc4 {[%clk 0:03:22]} 23. Bxh6 {[%clk 0:03:46.5]} 23... Rfd8
{[%clk 0:03:18.3]} 24. Bg5 {[%clk 0:03:37.6]} 24... Be7 {[%clk 0:03:14]} 25. e5
{[%clk 0:03:24.7]} 25... Rxd3 {[%clk 0:03:07.9]} 26. Bxa8 {[%clk 0:03:19.3]}
26... Nd5 {[%clk 0:03:00.1]} 27. Nxd5 {[%clk 0:03:12.1]} 27... Bxg5 {[%clk
0:02:57.2]} 28. hxg5 {[%clk 0:03:06.4]} 28... exd5 {[%clk 0:02:56.4]} 29. b3
{[%clk 0:02:58.5]} 29... Nd2 {[%clk 0:02:53.8]} 30. Red1 {[%clk 0:02:53.2]}
30... Be4 {[%clk 0:02:33.5]} 31. Rac1 {[%clk 0:02:51.7]} 31... Nf3+ {[%clk
0:02:11.3]} 32. Kf1 {[%clk 0:02:49.1]} 32... Nxe5 {[%clk 0:02:03.2]} 33. Rxd3
{[%clk 0:02:40.9]} 33... Bxd3+ {[%clk 0:02:02.2]} 34. Ke1 {[%clk 0:02:36.7]}
34... Bf5 {[%clk 0:01:48]} 35. Kd2 {[%clk 0:02:31.8]} 35... d4 {[%clk
0:01:42.3]} 36. Rc7 {[%clk 0:02:17]} 36... Kg7 {[%clk 0:01:34.3]} 37. Rxa7
{[%clk 0:02:13.1]} 37... Kg6 {[%clk 0:01:32.1]} 38. Re7 {[%clk 0:02:04]} 38...
Nf3+ {[%clk 0:01:20.8]} 39. Bxf3 {[%clk 0:02:01.8]} 39... gxf3 {[%clk
0:01:20.5]} 40. b4 {[%clk 0:01:57.4]} 40... b5 {[%clk 0:01:18.2]} 41. Rb7 {[%clk
0:01:53.7]} 1-0

[Event "Live Chess"]
[Site "Chess.com"]
[Date "2024.06.01"]
[Round "-"]
[White "GrahamCuthbert"]
[Black "Harry_Li"]
[Result "0-1"]
[WhiteElo "1031"]
[BlackElo "2086"]
[TimeControl "300"]
[EndTime "15:15:47 PDT"]
[Termination "Harry_Li won by resignation"]

1. d4 {[%clk 0:04:56.7]} 1... Nf6 {[%clk 0:04:56.2]} 2. Bf4 {[%clk 0:04:55.8]}
2... d5 {[%clk 0:04:54.4]} 3. Nf3 {[%clk 0:04:53.8]} 3... c5 {[%clk 0:04:52.3]}
4. c3 {[%clk 0:04:49.7]} 4... Nc6 {[%clk 0:04:50.9]} 5. e3 {[%clk 0:04:48.7]}
5... Qb6 {[%clk 0:04:49.7]} 6. Qb3 {[%clk 0:04:47.1]} 6... c4 {[%clk 0:04:48.6]}
7. Qxb6 {[%clk 0:04:45.5]} 7... axb6 {[%clk 0:04:48.1]} 8. Nbd2 {[%clk
0:04:37.9]} 8... b5 {[%clk 0:04:47.3]} 9. g3 {[%clk 0:04:26.9]} 9... e6 {[%clk
0:04:33]} 10. Ne5 {[%clk 0:04:24.3]} 10... b4 {[%clk 0:04:30]} 11. Bg2 {[%clk
0:04:20.7]} 11... bxc3 {[%clk 0:04:27.2]} 12. bxc3 {[%clk 0:04:19]} 12... Ba3
{[%clk 0:04:26.6]} 13. O-O {[%clk 0:03:46.9]} 13... Bb2 {[%clk 0:04:24]} 14.
Rab1 {[%clk 0:03:45.6]} 14... Bxc3 {[%clk 0:04:23.1]} 15. Rfd1 {[%clk
0:03:27.8]} 15... Rxa2 {[%clk 0:04:21.2]} 16. Nef3 {[%clk 0:03:22.6]} 16... O-O
{[%clk 0:04:15.8]} 17. Bd6 {[%clk 0:03:08.7]} 17... Rd8 {[%clk 0:04:05.5]} 18.
Be5 {[%clk 0:02:56.4]} 18... Nxe5 {[%clk 0:03:59.1]} 19. dxe5 {[%clk 0:02:51.5]}
19... Nd7 {[%clk 0:03:48.7]} 20. Nd4 {[%clk 0:02:38.3]} 20... Bxd2 {[%clk
0:03:44.2]} 0-1